Cogmind - Beta 13 --- EXPLORER MODE // 2024.05.26 @ 17:14:04 Player: Agod Result: Self-destructed Performance ------------- Evolutions (2) 1000 Regions Visited (3) 600 Robots Destroyed (11) 55 Value Destroyed (270) 270 Prototype IDs (11) 220 Alien Tech Used (0) 0 Bonus (0) 0 TOTAL SCORE: 2145 Bonus ------- None Cogmind --------- Core Integrity 538/550 Matter 294/300 Energy 415/415 System Corruption 0% Temperature Cool (0) Movement Walking (122) Location -8/Materials Parts ------- > --- POWER (2) -------- Ion Engine Improved Ion Engine > --- PROPULSION (4) --- Aluminum Leg Aluminum Leg Aluminum Leg Titanium Leg > --- UTILITY (4) ------ Cooling System Medium Storage Unit Structural Scanner Targeting Computer > --- WEAPON (2) ------- EM Pulse Gun Beam Rifle > --- INVENTORY (10) --- Ion Engine Heat Sink Large Storage Unit Light Armor Plating Advanced EMP Blaster Advanced EMP Blaster Mace Peak State ------------ > --- POWER ------------ Ion Engine Improved Ion Engine > --- PROPULSION ------- Aluminum Leg Aluminum Leg Aluminum Leg Titanium Leg > --- UTILITY ---------- Cooling System Medium Storage Unit Structural Scanner Targeting Computer > --- WEAPON ----------- EM Pulse Gun Beam Rifle > --- INVENTORY -------- Ion Engine Heat Sink Large Storage Unit Light Armor Plating Advanced EMP Blaster Advanced EMP Blaster Mace [Rating: 18] Favorites ----------- Power Ion Engine Engine Ion Engine Propulsion Aluminum Leg Treads Improved Treads Leg Aluminum Leg Utility Medium Storage Unit Device Improved Heat Sink Storage Medium Storage Unit Processor Targeting Computer Weapon EM Pulse Gun Energy Gun EM Pulse Gun Build | -11 -10 -9 -8 ------- Run | Yrd Mat Mat Mat Slots Evolved 5 | . 1 2 2 Power 1 | . . 1 . Propulsion 2 | . . 1 1 Utility 2 | . 1 . 1 Weapon . | . . . . Parts Attached 17 | 7 1 4 5 Power 3 | 1 . 1 1 Engine 3 | 1 . 1 1 Core . | . . . . Reactor . | . . . . Propulsion 5 | 2 . 1 2 Treads 1 | . . 1 . Leg 4 | 2 . . 2 Wheel . | . . . . Hover . | . . . . Flight . | . . . . Utility 6 | 2 1 2 1 Device 4 | . 1 2 1 Storage 1 | 1 . . . Processor 1 | 1 . . . Hackware . | . . . . Protection . | . . . . Artifact . | . . . . Weapon 3 | 2 . . 1 Energy Gun 3 | 2 . . 1 Energy Cannon . | . . . . Ballistic Gun . | . . . . Ballistic Cannon . | . . . . Launcher . | . . . . Special Weapon . | . . . . Impact Weapon . | . . . . Slashing Weapon . | . . . . Piercing Weapon . | . . . . Special Melee Weapon . | . . . . Unidentified Prototypes . | . . . . Parts Lost 1 | . . . 1 Power . | . . . . Propulsion . | . . . . Utility . | . . . . Weapon 1 | . . . 1 Highest Loss Streak 1 | . . . 1 To Critical Strikes . | . . . . Average Slot Usage (%) 88 | . 93 85 86 Engine 11 | . 12 10 12 Treads 3 | . . 5 3 Leg 22 | . 25 20 25 Device 8 | . 6 10 12 Storage 10 | . 12 10 8 Processor 10 | . 12 10 8 Energy Gun 20 | . 25 20 14 Naked Turns . | . . . . Heaviest Build 30 | 19 20 25 30 Greatest Support 47 | 20 20 20 47 Greatest Overweight (x) 1 | . . 1 . Average Overweight (x) . | . . . . Largest Inventory Capacity 10 | 10 10 10 10 Average Capacity 9 | 8 10 10 10 Most Carried 10 | 1 6 10 10 Average Carried 5 | . 2 8 8 Final Capacity 10 | 10 10 10 10 Final Carried 10 | 1 6 10 7 Class Distribution -------------------- 100% | Hacker-Mutant Dominant Class ---------------- Hacker-Mutant | -10/Materials Hacker-Mutant | -9/Materials Hacker-Mutant | -8/Materials Resources | -11 -10 -9 -8 ----------- Run | Yrd Mat Mat Mat Matter Collected 364 | 185 95 23 61 Remotely . | . . . . Salvage Created 537 | . 241 188 108 Parts 22 | . 8 10 4 Haulers Intercepted 1 | . 1 . . Recyclers Shooed . | . . . . Parts Field Recycled . | . . . . Retrieved Matter . | . . . . Parts Self-Destructed . | . . . . Prevented . | . . . . Kills | -11 -10 -9 -8 ------- Run | Yrd Mat Mat Mat Combat Hostiles Destroyed 8 | . 2 4 2 Guns 7 | . 2 4 1 Classes Destroyed 6 | . 3 2 1 Hauler 1 | . 1 . . Recycler 2 | . 1 1 . Swarmer 3 | . . 3 . Grunt 2 | . 2 . . Sentry 2 | . . 1 1 Hunter 1 | . . . 1 Best Kill Streak 3 | . 3 3 1 Combat Bots Only 3 | . 2 3 1 Max Kills in Single Turn 2 | . 2 2 1 Gunslinging 1 | . . 1 . Exploded . | . . . . Melee . | . . . . Uniques/NPCs Destroyed . | . . . . Combat | -11 -10 -9 -8 -------- Run | Yrd Mat Mat Mat Hostile Shots Fired 40 | . 6 16 18 Missed 11 | . 1 5 5 Damage Taken 258 | . 49 69 140 Core 35 | . 10 13 12 Absorbed by Shields . | . . . . Ignored by Resistances 160 | . 29 46 85 Core Remaining (%) 97 | 100 96 96 . Volleys Fired 24 | . 8 6 10 Largest 2 | . 2 2 2 Hottest 96 | . 80 80 96 Shots Fired 47 | . 16 12 19 Gun 47 | . 16 12 19 Cannon . | . . . . Launcher . | . . . . Special . | . . . . Kinetic . | . . . . Thermal 5 | . . . 5 Explosive . | . . . . Electromagnetic 42 | . 16 12 14 Robot Hit Streak 16 | . 11 16 15 Robot Miss Streak 2 | . 2 1 1 Penetration Max . | . . . . Secondary Targets 2 | . . 2 . Max Gunslinging Chain 1 | . . 1 . Shots Hit Robots 38 | . 11 9 18 Core Hits 17 | . 5 7 5 Critical Kills . | . . . . Critical Parts Destroyed . | . . . . Critical Strikes 2 | . . . 2 Burn 2 | . . . 2 Melee Attacks . | . . . . Impact . | . . . . Slashing . | . . . . Piercing . | . . . . Sneak Attacks . | . . . . Combat Hostiles . | . . . . Follow-up Attacks . | . . . . Damage Inflicted 632 | . 211 153 268 Guns 515 | . 164 118 233 Cannons . | . . . . Explosions 117 | . 47 35 35 Melee . | . . . . Ramming . | . . . . Kinetic . | . . . . Thermal 188 | . 47 35 106 Explosive . | . . . . Electromagnetic 444 | . 164 118 162 Impact . | . . . . Slashing . | . . . . Piercing . | . . . . Highest Corruption . | . . . . Average Corruption . | . . . . Corruption Purged . | . . . . Corruption Blocked . | . . . . Overload Shots . | . . . . Overflow Damage 22 | . 17 . 5 Projectiles . | . . . . Explosions 22 | . 17 . 5 Melee . | . . . . Knockbacks . | . . . . Impact . | . . . . Kinetic . | . . . . Secondary . | . . . . Self-Inflicted Damage . | . . . . Shots . | . . . . Rammed . | . . . . Targets Rammed . | . . . . Kicked . | . . . . Crushed . | . . . . Highest Temperature 97 | . 97 27 39 Average Temperature 30 | . 41 14 23 Received Heat Transfer 108 | . 45 9 54 Siege Activations . | . . . . Robots Corrupted . | . . . . Combat Hostiles . | . . . . Parts Fried 2 | . 1 . 1 Impact Corruptions . | . . . . Robots Melted 1 | . . . 1 Combat Hostiles 1 | . . . 1 Parts Melted 1 | . . . 1 Heat Transferred 483 | . 50 50 383 Parts Sabotaged . | . . . . Parts Stolen . | . . . . Parts Stripped . | . . . . Power Chain Reactions 3 | . 1 1 1 Alert | -11 -10 -9 -8 ------- Run | Yrd Mat Mat Mat Peak Influence 191 | . 80 191 159 Initial 57 | . . 24 57 Average 65 | . 44 84 97 Maximum Alert Level . | . . . . Low Security (%) 100 | 100 100 100 100 Level 1 . | . . . . Level 2 . | . . . . Level 3 . | . . . . Level 4 . | . . . . Level 5 . | . . . . High Security . | . . . . Max Security . | . . . . Squads Dispatched 1 | . . . 1 Investigation . | . . . . Extermination . | . . . . Reinforcement 1 | . . . 1 Assault . | . . . . Garrison . | . . . . Intercept . | . . . . Searches Triggered . | . . . . Construction Impeded . | . . . . Haulers Reinforced . | . . . . Active Scanning Responses . | . . . . Cargo Convoy Interrupts . | . . . . Stealth | -11 -10 -9 -8 --------- Run | Yrd Mat Mat Mat Distress Signals 1 | . . 1 . Communications Jammed . | . . . . Distress Signals . | . . . . Times Spotted 11 | . 3 5 3 Peak Tracking Total 3 | . 2 3 2 Tactical Retreats 1 | . . 1 . Traps | -11 -10 -9 -8 ------- Run | Yrd Mat Mat Mat Traps Triggered . | . . . . Indirectly . | . . . . Trap Hack Attempts . | . . . . Triggered . | . . . . Disarmed . | . . . . Reprogrammed . | . . . . Reused . | . . . . Traps Extracted . | . . . . Installed . | . . . . Triggered . | . . . . Machines | -11 -10 -9 -8 ---------- Run | Yrd Mat Mat Mat Machines Disabled . | . . . . Max in Single Turn . | . . . . Machines Repaired . | . . . . Machines Dismantled . | . . . . Machines Sabotaged . | . . . . Overloaded Fab Kills . | . . . . Hacking | -11 -10 -9 -8 --------- Run | Yrd Mat Mat Mat Machines Accessed 7 | . . 5 2 Terminals 7 | . . 5 2 Fabricators . | . . . . Repair Stations . | . . . . Recycling Units . | . . . . Scanalyzers . | . . . . Garrison Access . | . . . . Total Hacks 27 | . . 19 8 Successful 15 | . . 12 3 Failed 12 | . . 7 5 Catastrophic 1 | . . . 1 Database Lockouts . | . . . . Manual 25 | . . 17 8 Terminals 27 | . . 19 8 Fabricators . | . . . . Repair Stations . | . . . . Recycling Units . | . . . . Scanalyzers . | . . . . Garrison Access . | . . . . Terminal Hacks 9 | . . 8 1 Robot Analysis 1 | . . 1 . Prototype ID Bank 6 | . . 6 . Level Access Points 2 | . . 1 1 Fabricator Hacks . | . . . . Repair Station Hacks . | . . . . Recycling Unit Hacks . | . . . . Scanalyzer . | . . . . Garrison Access Hacks . | . . . . Unauthorized Hacks 6 | . . 4 2 Terminals 6 | . . 4 2 Botnet 6 | . . 4 2 Fabricators . | . . . . Repair Stations . | . . . . Recycling Units . | . . . . Scanalyzers . | . . . . Garrison Access . | . . . . Data Cores Recovered . | . . . . Used . | . . . . Hacking Detections 7 | . . 5 2 Full Trace Events . | . . . . Feedback Events . | . . . . Feedback Blocked . | . . . . Robot Schematics Acquired . | . . . . Robots Built . | . . . . Authchips . | . . . . Time . | . . . . Total Robot Build Rating . | . . . . Part Schematics Acquired . | . . . . Parts Built . | . . . . Authchips . | . . . . Time . | . . . . Total Part Build Rating . | . . . . Parts Repaired . | . . . . Time . | . . . . Parts Recycled . | . . . . Recycled Matter . | . . . . Retrieved Matter . | . . . . Retrieved Components . | . . . . Parts Scanalyzed . | . . . . Part Schematics Acquired . | . . . . Parts Damaged . | . . . . Bothacking | -11 -10 -9 -8 ------------ Run | Yrd Mat Mat Mat Used RIF Installer . | . . . . Robots Hacked . | . . . . Non-combat . | . . . . Combat . | . . . . Robot Hacks Applied . | . . . . Relay Couplers Released . | . . . . Fabnet Peak Effective % . | . . . . Robots Rewired . | . . . . Allies Hacked . | . . . . Hacks Repelled . | . . . . Allies | -11 -10 -9 -8 -------- Run | Yrd Mat Mat Mat Total Allies . | . . . . Largest Group . | . . . . Highest-Rated Group . | . . . . Highest-Rated Ally . | . . . . Total Orders . | . . . . Ally Attacks . | . . . . Total Damage . | . . . . Kills . | . . . . Allies Corrupted . | . . . . Allies Melted . | . . . . Intel | -11 -10 -9 -8 ------- Run | Yrd Mat Mat Mat Robot Analysis Total 1 | . . 1 . Derelict Logs Recovered . | . . . . Drone Launches . | . . . . Drone Recoveries . | . . . . Exploration | -11 -10 -9 -8 ------------- Run | Yrd Mat Mat Mat Turns Passed 837 | 73 279 344 141 Spaces Moved 571 | 53 179 252 87 Core 5 | 5 . . . Treads . | . . . . Legs 566 | 48 179 252 87 Wheels . | . . . . Hover . | . . . . Flight . | . . . . Fastest Speed 50 | 50 120 120 120 Average Speed 120 | 113 120 121 121 Slowest Speed 190 | 120 120 190 122 Overloaded Moves . | . . . . Propulsion Burnouts . | . . . . Robots Hopped . | . . . . Cave-ins Triggered . | . . . . Exploration Rate (%) 18 | 3 25 33 13 Regions Visited 3 Branch Regions . Pre-discovered Areas . | . . . . Known Exits Taken 3 | 1 1 1 . Unknown Exits Taken . | . . . . Scrap Searched . | . . . . Spaces Dug . | . . . . Terrain Destroyed 7 | . 3 . 4 Melee . | . . . . Projectile . | . . . . AOE 7 | . 3 . 4 Terrain Rammed . | . . . . Walls Destroyed . | . . . . Machines Disabled . | . . . . Actions | -11 -10 -9 -8 --------- Run | Yrd Mat Mat Mat Total 672 | 62 227 280 103 Wait 40 | 2 33 5 . Move 568 | 52 178 251 87 Hop . | . . . . Pick Up 15 | 1 6 8 . Fast Attach 12 | 7 1 2 2 Attach 4 | . . 1 3 Detach 1 | . . 1 . Swap 1 | . . 1 . Drop 7 | . 1 5 1 Fire 24 | . 8 6 10 Melee . | . . . . Ram . | . . . . Kick . | . . . . Crush . | . . . . Escape Stasis . | . . . . Rewire . | . . . . Trap . | . . . . Miscellaneous . | . . . . Route ------- -11/Scrapyard -10/Materials -9/Materials (discovered 4 exits: *Mat x3 / *Min) -8/Materials (discovered 3 exits: Fac x3) History --------- Turn | Location | Event 9 | -11/Scrapyard | Identified exit to Materials 9 | -11/Scrapyard | Discovered exit to Materials (range 14) 74 | -11/Scrapyard | Entered Materials 74 | -10/Materials | Evolved 1 slot: Utility x1 222 | -10/Materials | Identified exit to Materials 222 | -10/Materials | Discovered exit to Materials (range 13) 311 | -10/Materials | Build established: Hacker-Mutant 353 | -10/Materials | Entered another Materials area 353 | -9/Materials | Evolved 2 slots: Power x1, Propulsion x1 354 | -9/Materials | Identified exit to Mines 354 | -9/Materials | Discovered exit to Mines (range 7) 597 | -9/Materials | Identified exit to Materials 697 | -9/Materials | Entered another Materials area 697 | -8/Materials | Evolved 2 slots: Propulsion x1, Utility x1 784 | -8/Materials | Identified exit to Factory 838 | -8/Materials | Self-destructed Last Messages --------------- reinforcements to Terminal M002. 00812_ K-01 Serf collects debris. 00818_ Slug penetrates K-01 Serf. 00818_ K-01 Serf destroyed. 00821_ Penetrated by Slug. 00824_ H-55 Commando suffers critical hit (Burn). 00825_ Penetrated by Slug. 00827_ H-55 Commando suffers critical hit (Burn). 00828_ H-55 Commando critical meltdown. 00828_ Targeting Computer melted. 00828_ Lgt. Nuclear Core fried. 00828_ R-06 Scavenger collects Corrupted Assault Rifle. 00832_ R-06 Scavenger collects Corrupted Carbon-fiber Leg. 00837_ K-01 Serf collects debris. 00837_ R-06 Scavenger collects Wheel. 00837_ Acquired 24 matter. Map ----- +----------------------------------------------------+ | ?????????????????????????????????????????????????? | | ?????????????????????????????????????????????????? | | ?????????????????????????????????????????????????? | | ?????????????????????????????????????????????????? | | ?????????????????????????????????????????????????? | | ?????????????????????????????????????????????????? | | ?????????????????????????????????????????????????? | | ?????????????????????????????????????????????????? | | ?????????????????????????????????????????????????? | | ???????????????????????????????????? #????????? | | ???????????????????????????????????? ##????????? | | ???????????????????????????????????? ##????????? | | ???????????????????????????????????? ##????????? | | ???????????????????????????????????? ##????????? | | ???????????????????????????????????? ##????????? | | ?????????????????????????????????? # ######????? | | ?????????????????????????????????? # ######????? | | ?????????????????????????????????? # ????? | | ?????????????????????????????????? + ???????? | | ?????????????????????????????????? # ????????? | | ?????????????????????????????????? # ##????????? | | ????????????????????? # # ##????????? | | ?????????????????????############### ##????????# | | ????????????????####### Y ##????????# | | ????????????????#######k # ##????????# | | ?????????? u%r@! # ##????????# | | ??????????? ####### # #### """ # | | ??????????????? ####### # ########### | | ?????????????????????###+########### | | ????????????????????#### ########### | | ???????????????? ####### ####?????## | | ???????????? ##### ######### | | ???????????? ######### | | ???????????? T ########### | | ???????????? ##########+############ | | ???????????? ##### ###### ######## | | ???????????????? ############??## + | | ????????????????????#########?### ]= """ ######## | | ??????????????????????????????### ] """ ######## | | ??????????????????????????????###=] """ ##???## | | ?????????????????????????????###"%= """ ##???## | | ?????????????????????????????##" """ ##???## | | ?????????????????????????????##"# ##???## | | ?????????????????????????????###############???## | | ?????????????????????????????###############???## | | ???????????????????????????????????????????????## | | ???????????????????????????????????????????????### | | | | | | | +----------------------------------------------------+ Best States ------------- Heat Dissipation 53 Energy Generation 17 Energy Capacity 415 Matter Stores 300 Matter Capacity 300 Sight Range 16 Terrain Scan Density 10 Resistance: KI 35 Resistance: TH 35 Resistance: EX 35 Resistance: EM 35 Resistance: I 35 Resistance: S 35 Resistance: P 35 Evasion (%) 55 Targeting Accuracy 5 Offensive Hacking 20 Item Schematics ----------------- None Robot Schematics ------------------ None Fabricated ------------ Nothing Alien Tech Used ----------------- None Achievements -------------- None Challenges ------------ None Game ------ Seed MakeshiftDisposablePlatform Manual? 0 Play Time 00:13:42 Cumulative 26.6 hours Start 2024.05.25 @ 22:00:51 End 2024.05.26 @ 17:14:04 Sessions 3 Manual Loads 0 Difficulty Explorer Special Mode None Game No. 7 Rogue 0 Adventurer 0 Explorer 7 Win Type - Total 4 Types 2/0/1/0/0/0/0/1/0 Lore% 39 Gallery% 22 Achievement% 44 Wizard Run 0 Options --------- Layout 1 ASCII 0 Keyboard 1 Movement Numpad Keybinds 0 Fullscreen 1 Font 24/Smallcaps Map View 50x35 Zoom Use 0% Tactical HUD 1 Map Filters NONE Filters NONE Steam 1 RUN: a82ec8dc-3614-4684-bb42-7e2cc9de2606